{"text_format":"1","workbook":"xlsx","n_sheets":3,"sheets":["Cenová nabídka","Ujednání objednávky","List3"],"not_rendered":{"charts":0,"images":1,"macros":1,"external_links":0,"defined_names":33,"comments":1,"pivot_tables":0},"unopened":[],"bounds":{"document_bytes":16777216,"sheet_cells":100000,"rows_first":2000,"rows_last":500,"rows_between":2000,"halvings":0,"cell_chars":16384,"cell_head_chars":4096},"cells_cut":0,"cells_raw":0,"read":"whole","date_system":"1900"}

{"sheet":"Cenová nabídka","index":0,"n_rows":82,"n_cols":36,"rows_kept":82,"cut":false,"hidden":false,"merged":[[73,2,73,6],[73,7,73,11],[73,12,73,14],[73,16,73,17],[73,18,73,29],[71,12,71,14],[71,16,71,17],[71,18,71,29],[65,16,65,17],[65,18,65,29],[67,2,67,6],[66,18,66,29],[50,19,50,20],[50,26,50,27],[50,28,50,29],[72,2,72,6],[72,7,72,11],[72,12,72,14],[72,16,72,17],[72,18,72,29],[64,2,64,6],[64,7,64,11],[64,12,64,14],[64,16,64,17],[64,18,64,29],[65,2,65,6],[65,7,65,11],[65,12,65,14],[70,16,70,17],[63,16,63,17],[63,18,63,29],[61,7,61,11],[61,12,61,14],[61,16,61,17],[61,18,61,29],[62,2,62,6],[62,7,62,11],[62,12,62,14],[62,16,62,17],[62,18,62,29],[70,18,70,29],[67,7,67,11],[67,12,67,14],[67,16,67,17],[67,18,67,29],[66,2,66,6],[66,7,66,11],[66,12,66,14],[66,16,66,17],[59,18,59,29],[60,2,60,6],[60,7,60,11],[60,12,60,14],[60,16,60,17],[60,18,60,29],[57,16,57,17],[57,18,57,29],[58,2,58,6],[58,7,58,11],[58,12,58,14],[58,16,58,17],[58,18,58,29],[59,16,59,17],[48,19,48,20],[48,26,48,27],[48,28,48,29],[47,10,47,11],[47,16,47,17],[47,19,47,20],[47,26,47,27],[47,28,47,29],[56,16,56,17],[56,18,56,29],[49,10,49,11],[49,16,49,17],[49,19,49,20],[49,26,49,27],[49,28,49,29],[54,16,54,17],[54,18,54,29],[55,16,55,17],[55,18,55,29],[54,12,54,14],[48,10,48,11],[48,16,48,17],[50,10,50,11],[50,16,50,17],[44,19,44,20],[44,26,44,27],[44,28,44,29],[43,10,43,11],[43,16,43,17],[43,19,43,20],[43,26,43,27],[43,28,43,29],[46,10,46,11],[46,16,46,17],[46,19,46,20],[46,26,46,27],[46,28,46,29],[45,10,45,11],[45,16,45,17],[45,19,45,20],[45,26,45,27],[45,28,45,29],[44,10,44,11],[44,16,44,17],[40,19,40,20],[40,26,40,27],[40,28,40,29],[39,10,39,11],[39,16,39,17],[39,19,39,20],[39,26,39,27],[39,28,39,29],[42,10,42,11],[42,16,42,17],[42,19,42,20],[42,26,42,27],[42,28,42,29],[41,10,41,11],[41,16,41,17],[41,19,41,20],[41,26,41,27],[41,28,41,29],[40,10,40,11],[40,16,40,17],[36,19,36,20],[36,26,36,27],[36,28,36,29],[35,10,35,11],[35,16,35,17],[35,19,35,20],[35,26,35,27],[35,28,35,29],[38,10,38,11],[38,16,38,17],[38,19,38,20],[38,26,38,27],[38,28,38,29],[37,10,37,11],[37,16,37,17],[37,19,37,20],[37,26,37,27],[37,28,37,29],[32,19,32,20],[32,26,32,27],[32,28,32,29],[31,10,31,11],[31,16,31,17],[31,19,31,20],[31,26,31,27],[31,28,31,29],[34,10,34,11],[34,16,34,17],[34,19,34,20],[34,26,34,27],[34,28,34,29],[33,10,33,11],[33,16,33,17],[33,19,33,20],[33,26,33,27],[33,28,33,29],[28,19,28,20],[28,26,28,27],[28,28,28,29],[27,10,27,11],[27,16,27,17],[27,19,27,20],[27,26,27,27],[27,28,27,29],[30,10,30,11],[30,16,30,17],[30,19,30,20],[30,26,30,27],[30,28,30,29],[29,10,29,11],[29,16,29,17],[29,19,29,20],[29,26,29,27],[29,28,29,29],[24,19,24,20],[24,26,24,27],[24,28,24,29],[23,10,23,11],[23,16,23,17],[23,19,23,20],[23,26,23,27],[23,28,23,29],[26,10,26,11],[26,16,26,17],[26,19,26,20],[26,26,26,27],[26,28,26,29],[25,10,25,11],[25,16,25,17],[25,19,25,20],[25,26,25,27],[25,28,25,29],[16,26,16,27],[16,28,16,29],[17,10,17,11],[17,16,17,17],[17,19,17,20],[17,26,17,27],[17,28,17,29],[16,16,16,17],[16,19,16,20],[18,26,18,27],[18,28,18,29],[19,10,19,11],[19,16,19,17],[19,19,19,20],[19,26,19,27],[19,28,19,29],[54,2,54,6],[54,7,54,11],[22,10,22,11],[22,16,22,17],[22,19,22,20],[22,26,22,27],[22,28,22,29],[20,16,20,17],[20,19,20,20],[20,26,20,27],[20,28,20,29],[21,10,21,11],[21,16,21,17],[21,19,21,20],[21,26,21,27],[21,28,21,29],[20,10,20,11],[13,19,13,20],[13,26,13,27],[13,28,13,29],[14,16,14,17],[14,19,14,20],[14,26,14,27],[14,28,14,29],[15,16,15,17],[15,19,15,20],[15,26,15,27],[15,28,15,29],[13,16,13,17],[24,10,24,11],[24,16,24,17],[28,10,28,11],[28,16,28,17],[32,10,32,11],[32,16,32,17],[36,10,36,11],[36,16,36,17],[74,2,74,6],[74,7,74,11],[74,12,74,14],[55,2,55,6],[55,7,55,11],[55,12,55,14],[57,2,57,6],[57,7,57,11],[57,12,57,14],[59,2,59,6],[59,7,59,11],[59,12,59,14],[61,2,61,6],[63,2,63,6],[63,7,63,11],[63,12,63,14],[56,2,56,6],[56,7,56,11],[56,12,56,14],[70,2,70,6],[70,7,70,11],[70,12,70,14],[71,2,71,6],[71,7,71,11],[74,16,74,17],[74,18,74,29],[76,1,80,8],[18,10,18,11],[11,1,12,1],[8,12,8,17],[11,23,12,23],[11,10,12,11],[11,2,12,2],[11,3,12,3],[11,4,11,6],[11,9,12,9],[11,7,12,7],[11,8,12,8],[12,16,12,17],[11,12,11,14],[11,15,11,17],[11,18,11,20],[11,21,12,21],[12,19,12,20],[79,29,79,31],[76,9,80,20],[77,29,77,31],[78,29,78,31],[4,7,4,17],[7,28,7,29],[0,9,0,12],[0,14,0,25],[13,10,13,11],[6,28,6,29],[5,12,5,17],[7,12,7,17],[6,12,6,17],[11,22,12,22],[4,19,4,34],[11,28,12,29],[11,26,12,27],[5,31,5,34],[7,31,7,34],[6,31,6,34],[11,34,12,34],[8,31,8,34],[8,25,8,29],[7,19,7,27],[6,19,6,27],[5,28,5,29],[5,7,5,8],[11,24,12,24],[6,7,6,8],[11,25,12,25],[5,19,5,27],[68,2,68,6],[68,7,68,11],[68,12,68,14],[68,16,68,17],[68,18,68,29],[69,2,69,6],[69,7,69,11],[69,12,69,14],[69,16,69,17],[69,18,69,29],[7,7,7,8],[8,19,8,23],[53,7,53,11],[53,16,53,17],[53,12,53,14],[14,10,14,11],[15,10,15,11],[16,10,16,11],[18,19,18,20],[53,2,53,6],[18,16,18,17]]}
[null,null,null,null,null,null,null,"cenová nabídka č.",null,null,null,null,null,null,"UROLOGIE",null,null,null,null,null,null,null,null,null,null,null,null,null,null,null,null,"datum vypracování:"]
[]
[null,null,null,null,null,null,null,"dodavatel, (prodávající/zhotovitel):",null,null,null,null,null,null,null,null,null,null,null,"odběratel (kupující/objednatel):"]
[]
[null,null,null,null,null,null,null,null,null,null,null,null,null,null,null,null,null,null,null,"Krajská zdravotní, a. s. -  Nemocnice Most, o.z."]
[null,null,null,null,null,null,null,null,null,null,null,null,null,null,null,null,null,null,null,"Eva Caklová",null,null,null,null,null,null,null,null,"IČ:"]
[null,null,null,null,null,null,null,null,null,null,null,null,null,null,null,null,null,null,null,"J.E.Purkyně 270",null,null,null,null,null,null,null,null,"tel.:",null,null,734415781]
[null,null,null,null,null,null,null,null,null,null,null,null,null,null,null,null,null,null,null,"Most",null,null,null,null,null,null,null,null,"mail:",null,null,"eva.caklova@kzcr.eu"]
[null,null,null,null,null,null,null,null,null,null,null,null,null,null,null,null,null,null,null,"434 01",null,null,null,null,null,"    místo plnění:",null,null,null,null,null,"J. E. Purkyně 270, Most"]
[]
[null,"dveře, zárubně"]
[null,"č. pol.","název dveří","PO","rozměry (cm)",null,null,"povrch","dekor\n/ barva","sklo","zámek",null,"ks",null,null,"D V E Ř E",null,null,"Z Á R U B N Ě",null,null,"podřez dveří","větrací mřížka vč montáže","medurový pás","okopový plech oboustranný","madlo jednostranné vč přípravy na madlo","celokovový zámek",null,null,null,null,"cena",null,null,"poznámky"]
[null,null,null,null,"š","v","tl.zdi",null,null,null,null,null,"L","P","X","cena/ks",{"$f":"IF(SUM(Q14:Q14)=0,\"\",\"sleva/ příplatek\")","v":""},null,"cena/ks",{"$f":"IF(SUM(T14:U14)=0,\"\",\"sleva/ příplatek\")","v":""},null,null,null,null,null,null,null,null,null,null,null,"celkem bez DPH",null,null,null,"počet kusů"]
[null,"kuchyňka","PLNÉ dtd",null,80,197,null,"CPL standard","šedá",null,"fab",null,1,null,null,null,null,null,null,null,null,null,null,null,null,null,null,null,null,null,{"$f":"IF(OR((M14+N14+O14)=0,AND(P14=\"\",S14=\"\",V14=\"\",W14=\"\",X14=\"\",Y14=\"\",Z14=\"\",AA14=\"\",AC14=\"\")),\"\",ROUND((M14+N14+O14)*SUM(P14,S14,V14:AD14),2))","v":""},{"$f":"IF(OR((M14+N14+O14)=0,AND(P14=\"\",S14=\"\",V14=\"\",W14=\"\",X14=\"\",Y14=\"\",Z14=\"\",AA14=\"\",AC14=\"\")),\"\",ROUND((M14+N14+O14)*SUM((1+Q14)*P14,(1+T14)*S14,V14:AD14),2))","v":""},"dveře","kování","koule/klika LEVÁ",{"$f":"SUM(M14:O14)*COUNT(P14,S14)","v":0}]
[null,"čisté prádlo","PLNÉ dtd",null,80,197,null,"CPL standard","šedá",null,"fab",null,1,null,null,null,null,null,null,null,null,null,null,null,null,null,null,null,null,null,"","","dveře","kování",null,0]
[null,"sklad","PLNÉ dtd + VM",null,80,197,null,"CPL standard","šedá",null,"fab",null,null,1,null,null,null,null,null,null,null,null,null,null,null,null,null,null,null,null,"","","dveře","kování","koule/klika PRAVÁ",0]
[null,"pokoj 1","PLNÉ dtd + MEDUR",null,110,197,null,"CPL standard","šedá",null,"fab",null,1,null,null,null,null,null,null,null,null,null,null,null,null,null,null,null,null,null,"","","dveře","kování",null,0]
[null,"pokoj 2","PLNÉ dtd + MEDUR",null,110,197,null,"CPL standard","šedá",null,"fab",null,1,null,null,null,null,null,null,null,null,null,null,null,null,null,null,null,null,null,"","","dveře","kování",null,0]
[null,"pokoj 3","PLNÉ dtd + MEDUR",null,110,197,null,"CPL standard","šedá",null,"fab",null,1,null,null,null,null,null,null,null,null,null,null,null,null,null,null,null,null,null,"","","dveře","kování",null,0]
[null,"pokoj 4","PLNÉ dtd + MEDUR",null,110,197,null,"CPL standard","šedá",null,"fab",null,null,1,null,null,null,null,null,null,null,null,null,null,null,null,null,null,null,null,"","","dveře","kování",null,0]
[null,"mezi chodba","PLNÉ dtd + MEDUR",null,110,197,null,"CPL standard","šedá",null,"fab",null,null,1,null,null,null,null,null,null,null,null,null,null,null,null,null,null,null,null,"","","dveře","kování",null,0]
[null,"pokoj 5","PLNÉ dtd + MEDUR",null,110,197,null,"CPL standard","šedá",null,"fab",null,1,null,null,null,null,null,null,null,null,null,null,null,null,null,null,null,null,null,"","","dveře","kování",null,0]
[null,"pokoj 6","PLNÉ dtd + MEDUR",null,110,197,null,"CPL standard","šedá",null,"fab",null,null,1,null,null,null,null,null,null,null,null,null,null,null,null,null,null,null,null,"","","dveře","kování",null,0]
[null,"pokoj 7","PLNÉ dtd + MEDUR",null,110,197,null,"CPL standard","šedá",null,"fab",null,1,null,null,null,null,null,null,null,null,null,null,null,null,null,null,null,null,null,"","","dveře","kování",null,0]
[null,"pokoj 8","PLNÉ dtd + MEDUR",null,110,197,null,"CPL standard","šedá",null,"fab",null,1,null,null,null,null,null,null,null,null,null,null,null,null,null,null,null,null,null,"","","dveře","kování",null,0]
[null,"nový pokoj","PLNÉ dtd + MEDUR",null,110,197,null,"CPL standard","šedá",null,"fab",null,1,null,null,null,null,null,null,null,null,null,null,null,null,null,null,null,null,null,"","","dveře","kování",null,0]
[null,"sklad","PLNÉ dtd + 2xVM",null,80,197,null,"CPL standard","šedá",null,"fab",null,null,1,null,null,null,null,null,null,null,null,null,null,null,null,null,null,null,null,"","","dveře","kování","koule/klika PRAVÁ",0]
[null,"pokoj 9","PLNÉ dtd + MEDUR",null,110,197,null,"CPL standard","šedá",null,"fab",null,1,null,null,null,null,null,null,null,null,null,null,null,null,null,null,null,null,null,"","","dveře","kování",null,0]
[null,"wc uvnitř","PLNÉ dtd + OP",null,60,197,null,"CPL standard","šedá",null,"wc",null,1,null,null,null,null,null,null,null,null,null,null,null,null,null,null,null,null,null,"","","dveře","kování",null,0]
[null,"pokoj 10","PLNÉ dtd + MEDUR",null,110,197,null,"CPL standard","šedá",null,"fab",null,null,1,null,null,null,null,null,null,null,null,null,null,null,null,null,null,null,null,"","","dveře","kování",null,0]
[null,"koupelna","PLNÉ dtd + OP",null,60,197,null,"CPL standard","šedá",null,"wc",null,null,1,null,null,null,null,null,null,null,null,null,null,null,null,null,null,null,null,"","","dveře","kování",null,0]
[null,"wc","PLNÉ dtd + OP",null,60,197,null,"CPL standard","šedá",null,"wc",null,null,1,null,null,null,null,null,null,null,null,null,null,null,null,null,null,null,null,"","","dveře","kování",null,0]
[null,"sesterna","PLNÉ dtd",null,80,197,null,"CPL standard","šedá",null,"fab",null,1,null,null,null,null,null,null,null,null,null,null,null,null,null,null,null,null,null,"","","dveře","kování","koule/klikaLEVÁ",0]
[null,"sesterna/vyšetřovna","PLNÉ dtd",null,80,197,null,"CPL standard","šedá",null,"fab",null,1,null,null,null,null,null,null,null,null,null,null,null,null,null,null,null,null,null,"","","dveře","kování",null,0]
[null,"vyšetřovna","PLNÉ dtd + MEDUR",null,110,197,null,"CPL standard","šedá",null,"fab",null,null,1,null,null,null,null,null,null,null,null,null,null,null,null,null,null,null,null,"","","dveře","kování","koule/klika PRAVÁ",0]
[null,"wc ženy vstup","PLNÉ dtd",null,80,197,null,"CPL standard","šedá",null,"fab",null,null,1,null,null,null,null,null,null,null,null,null,null,null,null,null,null,null,null,"","","dveře","kování",null,0]
[null,"wc ženy uvnitř","PLNÉ dtd + OP",null,80,197,null,"CPL standard","šedá",null,"bez",null,null,1,null,null,null,null,null,null,null,null,null,null,null,null,null,null,null,null,"","","dveře","kování",null,0]
[null,"kabinka","PLNÉ dtd + OP",null,60,197,null,"CPL standard","šedá",null,"wc",null,null,1,null,null,null,null,null,null,null,null,null,null,null,null,null,null,null,null,"","","dveře","kování",null,0]
[null,"kabinka","PLNÉ dtd + OP",null,60,197,null,"CPL standard","šedá",null,"wc",null,null,1,null,null,null,null,null,null,null,null,null,null,null,null,null,null,null,null,"","","dveře","kování",null,0]
[null,"kabinka","PLNÉ dtd + OP",null,80,197,null,"CPL standard","šedá",null,"wc",null,null,1,null,null,null,null,null,null,null,null,null,null,null,null,null,null,null,null,"","","dveře","kování",null,0]
[null,"úklid","PLNÉ dtd + 2xVM",null,60,197,null,"CPL standard","šedá",null,"fab",null,1,null,null,null,null,null,null,null,null,null,null,null,null,null,null,null,null,null,"","","dveře","kování","otočná koule/klika LEVÁ",0]
[null,"koupelna ženy","PLNÉ dtd + MEDUR + OP",null,110,197,null,"CPL standard","šedá",null,"fab",null,null,1,null,null,null,null,null,null,null,null,null,null,null,null,null,null,null,null,"","","dveře","kování",null,0]
[null,"koupelna muži","PLNÉ dtd + MEDUR + OP",null,110,197,null,"CPL standard","šedá",null,"fab",null,1,null,null,null,null,null,null,null,null,null,null,null,null,null,null,null,null,null,"","","dveře","kování",null,0]
[null,"wc invalida","PLNÉ dtd + MADLO + OP",null,90,197,null,"CPL standard","šedá",null,"wc",null,null,1,null,null,null,null,null,null,null,null,null,null,null,null,null,null,null,null,"","","dveře","kování",null,0]
[null,"wc zam.","PLNÉ dtd",null,60,197,null,"CPL standard","šedá",null,"fab",null,1,null,null,null,null,null,null,null,null,null,null,null,null,null,null,null,null,null,"","","dveře","kování",null,0]
[null,"wc muži vstup","PLNÉ dtd",null,80,197,null,"CPL standard","šedá",null,"fab",null,null,1,null,null,null,null,null,null,null,null,null,null,null,null,null,null,null,null,"","","dveře","kování",null,0]
[null,"wc muži mezi","PLNÉ dtd + OP",null,80,197,null,"CPL standard","šedá",null,"bez",null,1,null,null,null,null,null,null,null,null,null,null,null,null,null,null,null,null,null,"","","dveře","kování",null,0]
[null,"kabinka","PLNÉ dtd + OP",null,60,197,null,"CPL standard","šedá",null,"wc",null,1,null,null,null,null,null,null,null,null,null,null,null,null,null,null,null,null,null,"","","dveře","kování",null,0]
[null,"kabinka","PLNÉ dtd + OP",null,60,197,null,"CPL standard","šedá",null,"wc",null,1,null,null,null,null,null,null,null,null,null,null,null,null,null,null,null,null,null,"","","dveře","kování",null,0]
[null,"čistící místnost","PLNÉ dtd",null,80,197,null,"CPL standard","šedá",null,"fab",null,null,1,null,null,null,null,null,null,null,null,null,null,null,null,null,null,null,null,"","","dveře","kování","otočná koule/klika PRAVÁ",0]
[null,"denní místnost","PLNÉ dtd",null,80,197,null,"CPL standard","šedá",null,"fab",null,1,null,null,null,null,null,null,null,null,null,null,null,null,null,null,null,null,null,{"$f":"IF(OR((M51+N51+O51)=0,AND(P51=\"\",S51=\"\",V51=\"\",W51=\"\",X51=\"\",Y51=\"\",Z51=\"\",AA51=\"\",AC51=\"\")),\"\",ROUND((M51+N51+O51)*SUM(P51,S51,V51:AD51),2))","v":""},{"$f":"IF(OR((M51+N51+O51)=0,AND(P51=\"\",S51=\"\",V51=\"\",W51=\"\",X51=\"\",Y51=\"\",Z51=\"\",AA51=\"\",AC51=\"\")),\"\",ROUND((M51+N51+O51)*SUM((1+Q51)*P51,(1+T51)*S51,V51:AD51),2))","v":""},"dveře","kování","otočná koule/klika",{"$f":"SUM(M51:O51)*COUNT(P51,S51)","v":0}]
[null,null,null,null,null,null,null,null,null,null,null,null,null,null,null,null,null,null,null,null,null,null,null,null,null,null,null,null,null,null,null,null,null,"kování"]
[null,"kování, služby a další",null,null,null,null,null,null,null,null,null,"celkem kusů",{"$f":"SUM(AJ14:AJ52)","v":0},null,null,null,null,null,null,null,null,null,null,null,null,null,null,null,null,null,null,null,null,"kování",{"$f":"SUM(AF14:AF53)","v":0}]
[null,"č.","název výrobku, služby",null,null,null,null,"upřesnění",null,null,null,null,"ks",null,null,"cena/ks",null,null,null,null,null,null,null,null,null,null,null,null,null,null,null,"celkem bez DPH",null,"kování","poznámky"]
[null,1,"montáž otočných dveří DO 90cm šířky dveří",null,null,null,null,"do ocelové zárubně",null,null,null,null,23,null,null,null,null,null,null,null,null,null,null,null,null,null,null,null,null,null,{"$f":"IF(OR(M55=\"\",P55=\"\"),\"\",ROUND(M55*P55,2))","v":""},{"$f":"IF(OR(M55=\"\",P55=\"\"),\"\",M55*((1+Q55)*P55))","v":""},null,"kování"]
[null,2,"montáž otočných dveří NAD 90cm šířky dveří",null,null,null,null,"do ocelové zárubně",null,null,null,null,15,null,null,null,null,null,null,null,null,null,null,null,null,null,null,null,null,null,"","",null,"kování"]
[null,3,"montáž Medurového pásu",null,null,null,null,null,null,null,null,null,15,null,null,null,null,null,null,null,null,null,null,null,null,null,null,null,null,null,"","",null,"kování"]
[null,4,"montáž okopového plechu",null,null,null,null,"oboustranného",null,null,null,null,13,null,null,null,null,null,null,null,null,null,null,null,null,null,null,null,null,null,"","",null,"kování"]
[null,5,"nátěr spodní hrany dveří ",null,null,null,null,"vč nátěrové hmoty",null,null,null,null,38,null,null,null,null,null,null,null,null,null,null,null,null,null,null,null,null,null,"","",null,"kování"]
[null,6,"montáž madla jednostranného",null,null,null,null,null,null,null,null,null,1,null,null,null,null,null,null,null,null,null,null,null,null,null,null,null,null,null,"","",null,"kování"]
[null,7,"truhlářská úprava dveří - zúžení",null,null,null,null,"dle skutečnosti",null,null,null,null,0,null,null,null,null,null,null,null,null,null,null,null,null,null,null,null,null,null,"","",null,"kování"]
[null,8,"kování, nerez",null,null,null,null,"kulatá rozeta, klika/klika s FAB otvorem",null,null,null,null,19,null,null,null,null,null,null,null,null,null,null,null,null,null,null,null,null,null,"","",null,"kování"]
[null,9,"kování , nerez",null,null,null,null,"kulatá rozeta, klika/klika s WC zámkem",null,null,null,null,9,null,null,null,null,null,null,null,null,null,null,null,null,null,null,null,null,null,"","",null,"kování"]
[null,10,"kování , nerez",null,null,null,null,"kulatá rozeta, klika/klika bez spodní rozety",null,null,null,null,2,null,null,null,null,null,null,null,null,null,null,null,null,null,null,null,null,null,"","",null,"kování"]
[null,11,"kování , nerez",null,null,null,null,"kulatá rozeta, koule/klika LEVÁ s FAB otvorem",null,null,null,null,2,null,null,null,null,null,null,null,null,null,null,null,null,null,null,null,null,null,"","",null,"kování"]
[null,12,"kování, nerez",null,null,null,null,"kulatá rozeta, koule/klika PRAVÁ s FAB otvorem",null,null,null,null,3,null,null,null,null,null,null,null,null,null,null,null,null,null,null,null,null,null,"","",null,"kování"]
[null,13,"kování, nerez",null,null,null,null,"kulatá rozeta, OTOČNÁ koule/klika LEVÁ s FAB otvorem",null,null,null,null,2,null,null,null,null,null,null,null,null,null,null,null,null,null,null,null,null,null,"","",null,"kování"]
[null,14,"kování, nerez",null,null,null,null,"kulatá rozeta, OTOČNÁ koule/klika PRAVÁ s FAB otvorem",null,null,null,null,1,null,null,null,null,null,null,null,null,null,null,null,null,null,null,null,null,null,"","",null,"kování"]
[null,15,"zaměření",null,null,null,null,"Most",null,null,null,null,1,null,null,null,null,null,null,null,null,null,null,null,null,null,null,null,null,null,{"$f":"IF(OR(M69=\"\",P69=\"\"),\"\",ROUND(M69*P69,2))","v":""},{"$f":"IF(OR(M69=\"\",P69=\"\"),\"\",M69*((1+Q69)*P69))","v":""},null,"kování"]
[null,16,"doprava vč manipulace",null,null,null,null,"Most",null,null,null,null,3,null,null,null,null,null,null,null,null,null,null,null,null,null,null,null,null,null,{"$f":"IF(OR(M70=\"\",P70=\"\"),\"\",ROUND(M70*P70,2))","v":""},{"$f":"IF(OR(M70=\"\",P70=\"\"),\"\",M70*((1+Q70)*P70))","v":""},null,"kování"]
[null,17,"systém sjednocené vložky + 50xklíč",null,null,null,null,"jedním klíčem se dají odemknout všechny FAB",null,null,null,null,1,null,null,null,null,null,null,null,null,null,null,null,null,null,null,null,null,null,{"$f":"IF(OR(M71=\"\",P71=\"\"),\"\",ROUND(M71*P71,2))","v":""},{"$f":"IF(OR(M71=\"\",P71=\"\"),\"\",M71*((1+Q71)*P71))","v":""},null,"kování"]
[null,18,"truhlářská úprava dveří - podřez",null,null,null,null,"dle skutečnosti",null,null,null,null,0,null,null,null,null,null,null,null,null,null,null,null,null,null,null,null,null,null,{"$f":"IF(OR(M72=\"\",P72=\"\"),\"\",ROUND(M72*P72,2))","v":""},{"$f":"IF(OR(M72=\"\",P72=\"\"),\"\",M72*((1+Q72)*P72))","v":""},null,"kování"]
[null,19,"likvidace dveří",null,null,null,null,"odvoz",null,null,null,null,1,null,null,null,null,null,null,null,null,null,null,null,null,null,null,null,null,null,{"$f":"IF(OR(M73=\"\",P73=\"\"),\"\",ROUND(M73*P73,2))","v":""},{"$f":"IF(OR(M73=\"\",P73=\"\"),\"\",M73*((1+Q73)*P73))","v":""},null,"kování"]
[null,20,"demontáž starých dveří",null,null,null,null,null,null,null,null,null,38,null,null,null,null,null,null,null,null,null,null,null,null,null,null,null,null,null,{"$f":"IF(OR(M74=\"\",P74=\"\"),\"\",ROUND(M74*P74,2))","v":""},{"$f":"IF(OR(M74=\"\",P74=\"\"),\"\",M74*((1+Q74)*P74))","v":""},null,"kování"]
[null,null,null,null,null,null,null,null,null,null,null,null,null,null,null,null,null,null,null,null,null,null,null,null,null,null,null,null,null,null,"",""]
[null,"doplňující informace:",null,null,null,null,null," ",null,null,null,null,null,null,null,null,null,null,null,null,null,null,null,null,{"$f":"IF($AF$76=\"\",\"\",\"Ceníková cena bez DPH\")","v":""},null,null,null,null,null,null,{"$f":"IF(SUM(AE14:AE75)<=$AD$78,\"\",SUM(AE14:AE75))","v":""}]
[null,"OP - okopový plech\nVM - větrací mřížka",null,null,null,null,null,null,null,null,null,null,null,null,null,null,null,null,null,null,null,null,null,null,{"$f":"IF($AF$76=\"\",\"\",\"Sleva bez DPH\")","v":""},null,null,null,null,null,null,{"$f":"IF(SUM(AE14:AE55)<=$AD$78,\"\",$AF$76-$AD$78)","v":""}]
[null,null,null,null,null,null,null,null,null,null,null,null,null,null,null,null,null,null,null,null,null,null,null,null,"Cena bez DPH",null,null,null,null,{"$f":"IF($AI$79=\"ANO\",IF(SUM(AE14:AE75)*0.9<=SUM(AF14:AF75),SUM(AE14:AE75),SUM(AF14:AF75)*10/9),SUM(AF14:AF75))","v":0}]
[null,null,null,null,null,null,null,null,null,null,null,null,null,null,null,null,null,null,null,null,null,null,null,null,0,"DPH",null,null,null,{"$f":"Y79*AD78","v":0}]
[null,null,null,null,null,null,null,null,null,null,null,null,null,null,null,null,null,null,null,null,null,null,null,null,"Cena s DPH",null,null,null,null,{"$f":"ROUND(SUM(AD78:AF79),0)","v":0}]
[]
[null,"upozornění:"]

{"sheet":"Ujednání objednávky","index":1,"n_rows":35,"n_cols":18,"rows_kept":35,"cut":false,"hidden":false,"merged":[[34,15,34,17],[21,4,21,17],[22,4,22,17],[23,4,23,17],[24,4,24,17],[25,4,25,17],[26,4,26,17],[27,4,27,17],[28,4,28,17],[29,2,29,17],[32,7,32,11],[32,15,32,17],[20,4,20,17],[9,5,9,17],[11,2,11,17],[12,2,12,17],[13,4,13,17],[14,4,14,17],[15,4,15,17],[16,4,16,17],[17,4,17,17],[18,4,18,17],[19,2,19,17]]}
[null,null,null,null,null,null,null,null,null,null,null,null,null,null,null,null,null,"Ujednání objednávky"]
[]
[null,null,null,null,null,"SEPOS, spol. s r.o. "]
[null,null,null,null,null,"Rantířovská 583/100, Jihlava 586 01"]
[null,null,null,null,null,"IČ: 155 288 55"]
[null,null,null,null,null,"zapsaná v OR u Kr. soudu v Brně oddíl C, vložka 732"]
[]
[]
[null,"1.","Zboží i služby (dále jen „Předmět plnění“), sjednaná cena a další podmínky jsou specifikovány výše uvedenou cenovou nabídkou č.: ",null,null,null,null,null,null,null,null,null,null,null,null,null,{"$f":"IF('Cenová nabídka'!J1=\"\",\"\",'Cenová nabídka'!J1)","v":""}]
[null,"2.","Místo plnění: ",null,null,{"$f":"IF('Cenová nabídka'!AF9=\"\",CONCATENATE('Cenová nabídka'!T7,\",      \",'Cenová nabídka'!T8,\",      \",'Cenová nabídka'!T9,\" \",),'Cenová nabídka'!AF9)","v":"J. E. Purkyně 270, Most"}]
[null,"3.","Konkrétní termín plnění bude výše uvedeným dodavatelem (dále též „Dodavatel“) upřesněn neprodleně po dodání zboží na prodejnu."]
[null,"4.","Výše uvedený odběratel (dále též „Odběratel“) je povinen poskytnout Dodavateli řádně a včas veškerou nezbytnou součinnost k řádnému provedení Předmětu plnění dle této objednávky (zejména je povinen zajistit stavební připravenost dle \"Podmínek zajištění jakosti\" Dodavatele). V případě, že Odběratel poruší tuto svou povinnost, prodlužuje se o dobu Odběratelova prodlení se splněním této povinnosti termín dodání Předmětu plnění."]
[null,"5.","Odběratel prohlašuje a svým podpisem potvrzuje, že:"]
[null," ","- ",null,"vlastní veškerá potřebná povolení k provádění stavby"]
[null,null,"- ",null,"práce objednané u Dodavatele jsou v souladu s povoleným projektem"]
[null,null,"- ",null,"v případě, že Odběratel není v postavení podnikatele ve smyslu § 420 a násl. občanského zákoníku (zejména pokud nevykonává na vlastní účet výdělečnou činnost živnostenským nebo obdobným způsobem se záměrem činit tak soustavně za účelem dosažení zisku), prohlašuje, že jsou mu známy „Podmínky zajištění jakosti“ a „Reklamační řád pro spotřebitele“ Dodavatele, souhlasí s jejich obsahem a s tím, že se jimi bude řídit závazek založený touto objednávkou. Uvedené dokumenty jsou zveřejněné m.j. na www.sepos.cz/informace/"]
[null,null,"- ",null,"v případě, že je Odběratel v postavení podnikatele ve smyslu § 420 a násl. občanského zákoníku, prohlašuje, že jsou mu známy „Podmínky zajištění jakosti“ a „Reklamační řád pro podnikatele“ Dodavatele, souhlasí s jejich obsahem a s tím, že se jimi bude řídit závazek založený touto objednávkou. Uvedené dokumenty jsou zveřejněné m.j. na www.sepos.cz/informace/"]
[null,null,"- ",null,"v případě, že je Odběratel v postavení spotřebitele a smlouva s ním byla uzavřena distančním způsobem či mimo obchodní prostory, žádá Odběratel, aby Dodavatel (pokud s tím bude souhlasit) započal s dodávkou Předmětu plnění hned po uzavření smlouvy"]
[null,null,"- ",null,"v případě, že je Odběratel v postavení spotřebitele, souhlasí s tím, že mu Dodavatel je a před uzavřením smlouvy, příp. před tím než Odběratel učinil závaznou nabídku, byl, oprávněn sdělovat údaje dle § 1811 odst. 2 a § 1820 odst. 1 občanského zákoníku v jiné textové podobě (mimo jiné zveřejněním na www.sepos.cz/informace/)."]
[null,"6.","Odběratel se s Dodavatelem dohodli, že s výše uvedenými body objednávky (resp. cenové nabídky) bez výhrad souhlasí a dále se dohodli, že:"]
[null,null,"- ",null,"případná reklamace včetně odstranění vady bude s Odběratelem, který je v pozici spotřebitele řešena dle \"Reklamačního řádu pro spotřebitele\" Dodavatele a s Odběratelem, který je v pozice podnikatele dle \"Reklamačního řádu pro podnikatele\" Dodavatele "]
[null,null,"- ",null,"vlastnictví k Předmětu plnění přechází na Odběratele až úplným zaplacením ceny "]
[null,null,"- ",null,"v případě, že Předmět plnění bude přebírat jiná osoba než Odběratel (příp. jeho zaměstnanec), považuje se to za porušení povinnosti Odběratele poskytnout součinnost ve smyslu bodu 4 této objednávky a Dodavatel je oprávněn, pokud se přebírající osoba neprokáže k tomu určenou písemnou plnou mocí, odmítnout předání Předmětu plnění; náklady tím vzniklé je Dodavatel oprávněn uplatnit po Odběrateli"]
[null,null,"- ",null,"Odběratel není povinen převzít Předmět plnění pouze tehdy, pokud vykazuje podstatné vady bránící jeho trvalému užívání, nebo když Dodavatel Odběrateli nepředá doklady, bez nichž nelze Předmět plnění užívat"]
[null,null,"- ",null,"pokud Odběratel nebo jím pověřená osoba přes výzvu pracovníků Dodavatele poruší svoji povinnost převzít Předmět plnění zahrnující montáž a/nebo si nenechá předvést jeho dokončení, vzniká právo na zaplacení ceny dnem, kdy Odběratel měl Předmět plnění převzít a nechat si předvést jeho dokončení; pokud Předmět plnění nezahrnuje montáž a Odběratel nepřevezme na základě výzvy Předmět plnění, nemá tato skutečnost vliv na jeho povinnost zaplatit cenu (příp. doplatek ceny) a její splatnost. "]
[null,null,"- ",null,"v případě, že je Odběratel podnikatelem, je povinen oznámit skryté vady Předmětu plnění bez zbytečného odkladu poté, co je mohl při dostatečné péči zjistit, nejpozději však do 2 let od převzetí Předmětu plnění"]
[null,null,"- ",null,"v případě, že Odběratel není podnikatelem a součástí Předmětu plnění není montáž, je oprávněn uplatnit právo z vady, která se vyskytne v době 24 měsíců od převzetí"]
[null,null,"- ",null,"v případě, že Odběratel není podnikatelem a součástí Předmětu plnění je montáž, je oprávněn uplatnit právo z vady, která se vyskytne v době 24 měsíců od převzetí; Odběratel je povinen oznámit skryté vady Předmětu plnění bez zbytečného odkladu poté, co je mohl při dostatečné péči zjistit, nejpozději však do 5 let"]
[null,null,"- ",null,"v případě, že Dodavatel bude nucen uskladnit věci tvořící Předmět plnění poté, co je Odběratel v termínu plnění nepřevezme (v případě, že součástí Předmětu plnění není montáž) nebo neposkytne nezbytnou součinnost, aby mohla být zahájena montáž, má Dodavatel právo na úhradu skladného ve výši 50,-- Kč za každý jeden kus dveří či zárubní za každý den uskladnění; obdobně se postupuje, i pokud Odběratel po vyřízení reklamace nepřevezme reklamovaný Předmět plnění, příp. jeho část, ve lhůtě 7 dnů po výzvě Dodavatele"]
[null,"7.","Platba ceny Předmětu plnění může být uskutečněna bezhotovostně ve prospěch bankovního účtu uvedeného na faktuře zaslané či předané Odběrateli nebo hotovostně příslušnému pracovníkovi Dodavatele."]
[]
[]
[null,null,null,null,null,null,null,null,null,null,null,null,null,null,"Za Odběratele:",{"$f":"IF(OR(jmprij=\"Jméno a Příjmení\",ISBLANK(datvyp),ISBLANK(jmprij)),\"\",CONCATENATE((TEXT(datvyp,\"d. m. rrrr\")),\", \",jmprij))","v":""}]
[]
[null,null,null,null,null,null,null,null,null,null,null,null,null,null,null,"datum, jméno a příjmení, podpis"]

{"sheet":"List3","index":2,"n_rows":18,"n_cols":4,"rows_kept":18,"cut":false,"hidden":true,"merged":[]}
[null,"Povrchy"]
[null,"bez povrchové úpravy"]
[null,"dýha"]
[null,"EBC lakované",null,"CN PLATNÁ OD: 2022-04"]
[null,"folie"]
[null,"gravír"]
[null,"HPL"]
[null,"kašír"]
[null,"lakované"]
[null,"lakované Extra"]
[null,"lamino"]
[null,"lazura"]
[null,"masiv"]
[null,"polypropylen"]
[null,"polyuretan"]
[null,"pvc"]
[null,"soft CPL"]
[null,"jiný"]